Cogmind - Beta 16 @@@ ROGUE MODE // 2026.01.04 @ 20:46:55 Player: Strick9 Result: Self-destructed Performance ------------- Evolutions (1) 500 Regions Visited (3) 600 Robots Destroyed (30) 150 Value Destroyed (720) 720 Prototype IDs (1) 20 Alien Tech Used (0) 0 Bonus (0) 0 TOTAL SCORE: 1990 Bonus ------- None Cogmind --------- Core Integrity 162/400 Matter 239/300 Energy 98/100 System Corruption 0% Temperature Cool (0) Movement Walking (120) Location -9/Mines Parts ------- > --- POWER (1) -------- (None) > --- PROPULSION (3) --- Aluminum Leg Aluminum Leg > --- UTILITY (3) ------ Medium Storage Unit Improved Targeting Computer > --- WEAPON (2) ------- Gauss Rifle > --- INVENTORY (10) --- Aluminum Leg Heat Sink Coolant Injector ECM Suite Hardened Light Armor Plating Beam Rifle Particle Gun Heavy Laser Heavy Assault Rifle Peak State ------------ > --- POWER ------------ Improved Ion Engine > --- PROPULSION ------- Aluminum Leg Aluminum Leg Aluminum Leg > --- UTILITY ---------- Medium Storage Unit Improved Targeting Computer Hardened Light Armor Plating > --- WEAPON ----------- Heavy Assault Rifle Gauss Rifle > --- INVENTORY -------- Aluminum Leg Heat Sink Coolant Injector ECM Suite Hardened Light Armor Plating Beam Rifle Particle Gun Heavy Laser Heavy Assault Rifle Mining Claw [Rating: 18] Favorites ----------- Power Improved Ion Engine Engine Improved Ion Engine Power Core Light Nuclear Core Propulsion Aluminum Leg Treads Light Treads Leg Aluminum Leg Flight Unit Improved Flight Unit Utility Medium Storage Unit Device Seismic Detector Storage Medium Storage Unit Processor Improved Targeting Computer Protection Hardened Light Armor Plating Weapon Heavy Assault Rifle Energy Gun Particle Gun Ballistic Gun Heavy Assault Rifle Ballistic Cannon Light Cannon Special Weapon Plasma Cutter Slashing Weapon Mining Claw Build | -11 -10 -9 -9 ------- Run | Yrd Mat Mat Min Slots Evolved 2 | . . 2 . Power . | . . . . Propulsion 1 | . . 1 . Utility 1 | . . 1 . Weapon . | . . . . Parts Attached 36 | 7 15 12 2 Power 5 | 1 2 2 . Engine 4 | 1 1 2 . Core 1 | . 1 . . Reactor . | . . . . Propulsion 9 | 2 2 5 . Treads 2 | . 2 . . Leg 6 | 2 . 4 . Wheel . | . . . . Hover . | . . . . Flight 1 | . . 1 . Utility 8 | 2 1 5 . Device 1 | 1 . . . Storage 2 | 1 1 . . Processor 1 | . . 1 . Hackware . | . . . . Protection 4 | . . 4 . Artifact . | . . . . Weapon 14 | 2 10 . 2 Energy Gun 3 | 2 1 . . Energy Cannon . | . . . . Ballistic Gun 6 | . 4 . 2 Ballistic Cannon 1 | . 1 . . Launcher . | . . . . Special Weapon 1 | . 1 . . Impact Weapon . | . . . . Slashing Weapon 3 | . 3 . . Piercing Weapon . | . . . . Special Melee Weapon . | . . . . Unidentified Prototypes 1 | . . 1 . Parts Lost 8 | . . 3 5 Power 3 | . . 2 1 Propulsion 1 | . . . 1 Utility 2 | . . 1 1 Weapon 2 | . . . 2 Highest Loss Streak 4 | . . 1 4 To Critical Strikes . | . . . . Average Backups 9 | 4 9 9 9 Power . | 1 1 . . Propulsion 2 | 2 3 2 1 Utility 1 | . . 1 3 Weapon 4 | . 4 4 4 Tool/Special . | . . . . Unused Backups 17 | . 5 3 9 Power 2 | . 1 1 . Propulsion 3 | . 2 . 1 Utility 5 | . . 1 4 Weapon 6 | . 1 1 4 Tool/Special 1 | . 1 . . Average Slot Usage (%) 97 | . 98 97 98 Engine 8 | . 11 6 10 Core 3 | . 2 4 . Treads 7 | . 22 . . Leg 24 | . 5 32 33 Device 7 | . 14 4 . Storage 11 | . 14 11 11 Processor 6 | . . 8 11 Protection 4 | . . 6 11 Energy Gun 4 | . 2 6 1 Ballistic Gun 13 | . 10 13 19 Ballistic Cannon 1 | . 1 1 . Slashing Weapon 3 | . 9 . 1 Peak Build Rating 18 | 7 12 17 18 Average Rating 12 | 5 9 14 16 On Entrance 8 | . 7 12 15 Avg Prop Armor Cover (%) 11 | . . 11 . Naked Turns . | . . . . Heaviest Build 29 | 14 22 28 29 Greatest Support 40 | 20 40 30 30 Greatest Overweight (x) 9 | 4 . 9 . Average Overweight (x) . | . . . . Largest Inventory Capacity 10 | 8 10 10 10 Average Capacity 9 | 7 9 10 10 Most Carried 10 | 7 10 10 10 Average Carried 9 | 5 9 9 9 Final Capacity 10 | 8 10 10 10 Final Carried 10 | 7 10 10 9 Class Distribution -------------------- 66% | Mutant 33% | Scavenger-Mutant Dominant Class ---------------- Mutant | -10/Materials Scavenger-Mutant | -9/Materials Mutant | -9/Mines Resources | -11 -10 -9 -9 ----------- Run | Yrd Mat Mat Min Matter Collected 1028 | 270 180 477 101 Remotely . | . . . . Salvage Created 1274 | 148 326 699 101 Parts 61 | 6 14 41 . Haulers Intercepted 3 | . 1 2 . Recyclers Shooed 1 | . 1 . . Parts Field Recycled . | . . . . Retrieved Matter . | . . . . Parts Self-Destructed . | . . . . Prevented . | . . . . Parts Restored . | . . . . Kills | -11 -10 -9 -9 ------- Run | Yrd Mat Mat Min Combat Hostiles Destroyed 28 | . 4 17 7 Melee 4 | . 4 . . Guns 22 | . . 15 7 Cannons 2 | . . 2 . Classes Destroyed 7 | 2 2 2 1 Tunneler 4 | 4 . . . Hauler 3 | . 1 2 . Recycler 2 | 1 1 . . Swarmer 6 | . . 6 . Grunt 10 | . 4 6 . Sentry 5 | . . 5 . Assembled 7 | . . . 7 Best Kill Streak 6 | 2 2 5 6 Combat Bots Only 6 | . 2 5 6 Max Kills in Single Turn 2 | 1 1 1 2 Gunslinging . | . . . . Exploded . | . . . . Melee 1 | . 1 . . Uniques/NPCs Destroyed . | . . . . Combat | -11 -10 -9 -9 -------- Run | Yrd Mat Mat Min Hostile Shots Fired 180 | . 18 105 57 Missed 50 | . 4 32 14 Hits 130 | . 14 73 43 Melee 3 | . . . 3 Projectile 127 | . 14 73 40 AOE 12 | . . . 12 Critical Strikes 4 | . 1 3 . Damage Taken 2129 | . 200 1014 915 Core 256 | . 18 99 139 Absorbed by Shields . | . . . . Core Remaining (%) 96 | 100 92 . . Volleys Fired 85 | 9 . 55 21 Largest 2 | 2 . 2 2 Hottest 90 | 90 . 88 51 Shots Fired 170 | 18 . 110 42 Gun 160 | 18 . 100 42 Cannon 10 | . . 10 . Launcher . | . . . . Special . | . . . . Kinetic 131 | . . 89 42 Thermal 39 | 18 . 21 . Explosive . | . . . . Electromagnetic . | . . . . Robot Hit Streak 16 | 5 . 16 14 Robot Miss Streak 4 | 1 . 3 4 Penetration Max 1 | . . . 1 Secondary Targets 4 | . . 3 1 Max Gunslinging Chain 1 | . . 1 1 Shots Hit Robots 125 | 11 15 75 24 Core Hits 54 | 6 8 28 12 Critical Kills 1 | . . 1 . Critical Parts Destroyed . | . . . . Critical Strikes 1 | . . 1 . Destroy 1 | . . 1 . Melee Attacks 20 | . 20 . . Impact . | . . . . Slashing 20 | . 20 . . Piercing . | . . . . Sneak Attacks 3 | . 3 . . Combat Hostiles . | . . . . Follow-up Attacks 1 | . 1 . . Damage Inflicted 2144 | 133 401 1126 484 Guns 1627 | 133 . 1010 484 Cannons 116 | . . 116 . Explosions . | . . . . Melee 401 | . 401 . . Ramming . | . . . . Kinetic 1321 | . . 837 484 Thermal 422 | 133 . 289 . Explosive . | . . . . Electromagnetic . | . . . . Impact . | . . . . Slashing 401 | . 401 . . Piercing . | . . . . Highest Corruption . | . . . . Average Corruption . | . . . . Corruption Purged . | . . . . Corruption Blocked . | . . . . Overload Shots . | . . . . Overflow Damage 35 | . 35 . . Projectiles . | . . . . Explosions . | . . . . Melee 35 | . 35 . . Knockbacks . | . . . . Impact . | . . . . Kinetic . | . . . . Secondary . | . . . . Self-Inflicted Damage . | . . . . Shots . | . . . . Rammed . | . . . . Targets Rammed . | . . . . Kicked . | . . . . Crushed . | . . . . Highest Temperature 323 | 120 7 323 . Average Temperature 67 | 43 7 74 . Received Heat Transfer 546 | . 132 414 . Effects 1 | . . 1 . Energy Bleed 1 | . . 1 . Siege Activations . | . . . . Martial Activations . | . . . . Shielding Activations . | . . . . Robots Disrupted . | . . . . Combat Hostiles . | . . . . Robots Corrupted . | . . . . Combat Hostiles . | . . . . Parts Fried . | . . . . Impact Corruptions . | . . . . Robots Melted . | . . . . Combat Hostiles . | . . . . Parts Melted 2 | 2 . . . Heat Transferred 1062 | 359 . 703 . Parts Sabotaged . | . . . . Parts Stolen . | . . . . Parts Stripped . | . . . . Power Chain Reactions . | . . . . Alert | -11 -10 -9 -9 ------- Run | Yrd Mat Mat Min Maximum Alert Level 1 | . . 1 . Low Security (%) 85 | 100 100 71 100 Level 1 14 | . . 28 . Level 2 . | . . . . Level 3 . | . . . . Level 4 . | . . . . Level 5 . | . . . . High Security . | . . . . Max Security . | . . . . Peak Influence 263 | 10 83 263 46 Initial 46 | . . 31 46 Average 77 | 1 13 141 13 Influence Increases 745 | 25 172 518 30 Destroy 0b10 Robot/C 420 | . 80 340 . Destroy 0b10 Robot/NC 45 | 25 10 10 . Destroy Leader 126 | . 22 104 . Disable Machine 15 | . 15 . . Destroy Structure 4 | . . 4 . Partial Spotted 30 | . . . 30 Lose Combat Pursuer 105 | . 45 60 . Influence Decreases 745 | 25 97 472 151 Entered New Map 119 | . . 44 75 Time Decay 566 | 25 97 398 46 Lost Part 60 | . . 30 30 Squads Dispatched 6 | . 3 2 1 Investigation 3 | . 1 1 1 Extermination . | . . . . Reinforcement 3 | . 2 1 . Assault . | . . . . Garrison . | . . . . Intercept . | . . . . Searches Triggered . | . . . . Construction Impeded . | . . . . Haulers Reinforced . | . . . . Active Scanning Responses . | . . . . Cargo Convoy Interrupts . | . . . . Stealth | -11 -10 -9 -9 --------- Run | Yrd Mat Mat Min Distress Signals 8 | . 1 6 1 Communications Jammed . | . . . . Distress Signals . | . . . . Times Spotted 58 | . 11 34 13 Peak Tracking Total 10 | . 3 8 10 Tactical Retreats 6 | . 2 3 1 Traps | -11 -10 -9 -9 ------- Run | Yrd Mat Mat Min Traps Triggered 1 | . . 1 . Indirectly . | . . . . Trap Hack Attempts . | . . . . Triggered . | . . . . Disarmed . | . . . . Reprogrammed . | . . . . Reused . | . . . . Traps Extracted . | . . . . Installed . | . . . . Triggered . | . . . . Machines | -11 -10 -9 -9 ---------- Run | Yrd Mat Mat Min Machines Disabled 1 | . 1 . . Max in Single Turn 1 | . 1 . . Machines Repaired . | . . . . Machines Dismantled 1 | . 1 . . Machines Sabotaged . | . . . . Overloaded Fab Kills . | . . . . Hacking | -11 -10 -9 -9 --------- Run | Yrd Mat Mat Min Machines Accessed 6 | . 3 2 1 Terminals 3 | . 1 2 . Fabricators . | . . . . Repair Stations 1 | . 1 . . Recycling Units 1 | . 1 . . Scanalyzers . | . . . . Garrison Access . | . . . . Total Hacks 11 | . 7 3 1 Successful 4 | . 3 . 1 Failed 7 | . 4 3 . Catastrophic . | . . . . Database Lockouts . | . . . . Manual 5 | . 2 3 . Terminals 5 | . 2 3 . Fabricators . | . . . . Repair Stations 2 | . 2 . . Recycling Units 3 | . 3 . . Scanalyzers . | . . . . Garrison Access . | . . . . Terminal Hacks 1 | . . . 1 Open Door 1 | . . . 1 Fabricator Hacks . | . . . . Repair Station Hacks 1 | . 1 . . Scan Component 1 | . 1 . . Recycling Unit Hacks 2 | . 2 . . Report Inventory 1 | . 1 . . Retrieve Components 1 | . 1 . . Scanalyzer . | . . . . Garrison Access Hacks . | . . . . Unauthorized Hacks . | . . . . Terminals . | . . . . Fabricators . | . . . . Repair Stations . | . . . . Recycling Units . | . . . . Scanalyzers . | . . . . Garrison Access . | . . . . Data Cores Recovered . | . . . . Used . | . . . . Hacking Detections 3 | . 1 2 . Full Trace Events . | . . . . Feedback Events . | . . . . Feedback Blocked . | . . . . Robot Schematics Acquired . | . . . . Robots Built . | . . . . Authchips . | . . . . Time . | . . . . Total Robot Build Rating . | . . . . Part Schematics Acquired . | . . . . Parts Built . | . . . . Authchips . | . . . . Time . | . . . . Total Part Build Rating . | . . . . Part Studies Acquired . | . . . . Parts Repaired . | . . . . Time . | . . . . Parts Recycled . | . . . . Recycled Matter . | . . . . Retrieved Matter . | . . . . Retrieved Components 2 | . 2 . . Parts Scanalyzed . | . . . . Part Schematics Acquired . | . . . . Parts Damaged . | . . . . Bothacking | -11 -10 -9 -9 ------------ Run | Yrd Mat Mat Min Used RIF Installer . | . . . . Robots Hacked . | . . . . Non-combat . | . . . . Combat . | . . . . Robot Hacks Applied . | . . . . Relay Couplers Released . | . . . . Fabnet Peak Effective % . | . . . . Robots Rewired . | . . . . Allies Hacked . | . . . . Hacks Repelled . | . . . . Allies | -11 -10 -9 -9 -------- Run | Yrd Mat Mat Min Total Allies . | . . . . Largest Group . | . . . . Highest-Rated Group . | . . . . Highest-Rated Ally . | . . . . Total Orders . | . . . . Ally Attacks . | . . . . Total Damage . | . . . . Kills . | . . . . Allies Corrupted . | . . . . Allies Melted . | . . . . Intel | -11 -10 -9 -9 ------- Run | Yrd Mat Mat Min Active Infowar (turns) 946 | 16 519 411 . Seismic 946 | 16 519 411 . Robot Analysis Total . | . . . . Derelict Logs Recovered . | . . . . Drone Launches . | . . . . Drone Recoveries . | . . . . Exploration | -11 -10 -9 -9 ------------- Run | Yrd Mat Mat Min Turns Passed 1845 | 170 519 941 215 Spaces Moved 897 | 97 228 454 118 Core 10 | 9 . 1 . Treads 168 | . 168 . . Legs 719 | 88 60 453 118 Wheels . | . . . . Hover . | . . . . Flight . | . . . . Fastest Speed 50 | 50 120 120 120 Average Speed 142 | 125 149 148 120 Slowest Speed 500 | 250 160 500 120 Overloaded Moves . | . . . . Propulsion Burnouts . | . . . . Robots Hopped . | . . . . Potential Cave-ins . | . . . . Cave-ins Triggered . | . . . . Exploration Rate (%) 25 | 5 34 38 24 Regions Visited 3 Branch Regions 1 Pre-discovered Areas . | . . . . Known Exits Taken . | . . . . Unknown Exits Taken 3 | 1 1 1 . Scrap Searched . | . . . . Spaces Dug . | . . . . Terrain Destroyed . | . . . . Melee . | . . . . Projectile . | . . . . AOE . | . . . . Terrain Rammed . | . . . . Walls Destroyed . | . . . . Machines Disabled . | . . . . Actions | -11 -10 -9 -9 --------- Run | Yrd Mat Mat Min Total 1248 | 124 363 612 149 Wait 119 | 5 67 46 1 Move 894 | 96 227 453 118 Hop . | . . . . Pick Up 37 | 7 10 18 2 Fast Attach 16 | 7 5 3 1 Attach 11 | . 3 7 1 Detach 2 | . 2 . . Swap 23 | . 10 11 2 Drop 37 | . 15 19 3 Fire 85 | 9 . 55 21 Melee 18 | . 18 . . Ram . | . . . . Kick . | . . . . Crush . | . . . . Escape Stasis . | . . . . Rewire . | . . . . Trap . | . . . . Miscellaneous 6 | . 6 . . Route ------- -11/Scrapyard -10/Materials -9/Materials -9/Mines History --------- Turn | Location | Event 21 | -11/Scrapyard | Discovered new exit (range 15) 171 | -11/Scrapyard | Entered Materials 172 | -10/Materials | Met a group of wandering Federalists 314 | -10/Materials | Build established: Mutant 677 | -10/Materials | Discovered new exit (range 7) 690 | -10/Materials | Entered another Materials area 690 | -9/Materials | Evolved 2 slots: Propulsion x1, Utility x1 1249 | -9/Materials | Discovered new exit (range 16) 1397 | -9/Materials | Build established: Scavenger-Mutant 1631 | -9/Materials | Entered Mines 1641 | -9/Mines | Met a Derelict shopkeep closing up shop 1683 | -9/Mines | Assembled infested the area 1841 | -9/Mines | Core integrity fell below 50% 1846 | -9/Mines | Self-destructed Last Messages --------------- 01833_ U-05 Engineer lays Concrete. 01834_ U-05 Engineer builds a Wall. 01835_ U-05 Engineer lays Concrete. 01835_ Imp. Ion Engine destroyed. 01836_ The unstable cave ceiling collapses. 01836_ U-05 Engineer builds a Wall. 01839_ The unstable cave ceiling collapses. 01839_ K-01 Serf collects debris. 01840_ U-05 Engineer lays Concrete. 01842_ The unstable cave ceiling collapses. 01842_ U-05 Engineer lays Concrete. 01842_ U-05 Engineer builds a Wall. 01843_ The unstable cave ceiling collapses. 01843_ U-05 Engineer lays Concrete. 01843_ K-01 Serf collects debris. 01844_ U-05 Engineer builds a Wall. 01845_ Aluminum Leg destroyed. 01845_ Mining Claw destroyed. 01845_ Hrd. Light Armor Plating destroyed. 01846_ The unstable cave ceiling collapses. Map ----- +----------------------------------------------------+ | | | | | | | | | | | | | ?????????????????????????????????????????????????? | | ?????????????????????????????????????????????????? | | ????????????????????????####?????????????????????? | | ???????????????????????## ##????????????????????? | | ?########??????????????# #????????????????????? | | ?#""""""#???####???????# #????????????????????? | | ?#!!!=! ##### #???????## #????????????????????? | | ?## ] ### #??####### #????????????????????? | | ??#! [ ## #?## ##????????????????????? | | ?### ## #### ##?????????????????????? | | ?# X # #### ##??????????????????????? | | ?# ## ### #???????????????????????? | | ?# ## ## ## ##???????????????????????? | | ?# ### ######????????????????????????? | | ?# ###?# ##?????????????????????????????? | | ?## ##???## ##????????###???????????????????? | | ??####?????## ##?????##?# ###??????????????????? | | ????????????## ##????### # #??????????????????? | | ?????????????# #?##### #??????????????????? | | ?????????????# ### @ $ #??????????????????? | | ?????????????# ## #?????????????????? | | ?????????????# ### # # #????????????????? | | ?????????????# ## ##? #????????????????? | | ?????????????# ## #??? #????????????????? | | ?????????????# ### ###???#????????????????? | | ????????????## # #????????????????????? | | ????????????# # # #????????????????????? | | ????????????# ## #????????????????????? | | ????????????## dss #???????????????????? | | ?????????????# d s #??????????????????? | | ????????????# #! #??????????????????? | | ??????????# %r ### #?????????????????? | | ??????????# = ku % ???????????????? | | ??????????## #### """ ??????????????? | | ???????????# ### # """????????????????? | | ???????????# ??# ### ""?????????????????? | | ???????????#???# # ?## ?????????????????? | | ???????????????# ######?? ?????????????????? | | ???????????????## ???????? % ????????????????? | | ????????????????## "????????? ?????????????????? | | ?????????????????## ???????????????????????????? | | ???????????????????###???????????????????????????? | | ?????????????????????????????????????????????????? | | ?????????????????????????????????????????????????? | +----------------------------------------------------+ Best States ------------- Heat Dissipation 28 Energy Generation 14 Energy Capacity 265 Matter Stores 300 Matter Capacity 300 Sight Range 16 Terrain Scan Density 10 Armor Coverage 150 Evasion (%) 55 Targeting Accuracy 6 Recoil Reduction 2 Item Schematics ----------------- None Robot Schematics ------------------ None Fabricated ------------ Nothing Repaired ---------- Nothing Studied --------- None Alien Tech Used ----------------- None Achievements -------------- None Challenges ------------ None Game ------ Seed MappingWeightSink Manual? 0 Play Time 00:36:53 Cumulative 41.2 hours Start 2026.01.02 @ 01:52:52 End 2026.01.04 @ 20:46:55 Sessions 3 Manual Loads 0 Difficulty Rogue Special Mode None Game No. 34 Rogue 34 Adventurer 0 Explorer 0 Win Type - Total 0 Types 0/0/0/0/0/0/0/0/0/0 Lore% 11 Gallery% 22 Achievement% 13 Wizard Run 0 Options --------- Layout 1 ASCII 0 Keyboard 1 Movement Numpad Keybinds 0 Fullscreen 1 Font 32/SmallcapsGlow Map View 50x35 Zoom Use 0% Tactical HUD 1 Map Filters NONE Filters NONE Steam 1 RUN: eb656d1c-8008-4311-b634-4229216f2afa